[Event "Titled Tuesday Blitz February 01 A 2022"]
[White "Iskusnyh, Sergei"]
[Black "Kamsky, Gata"]
[WhiteFideId "4120027"]
[BlackFideId "2000024"]
[WhiteElo "2492"]
[BlackElo "2645"]
[Result "0-1"]
[Round "11"]
[TimeControl "180+1"]
[Date "2022.02.01"]
[WhiteClock "0:00:09"]
[BlackClock "0:00:14"]

1. d4 {[%clk 0:03:00]}  d5 {[%clk 0:02:59]} 2. c4 {[%clk 0:03:01]}  c6 {[%clk 0:02:52]} 3. Nf3 {[%clk 0:03:01]}  Nf6 {[%clk 0:02:51]} 4. e3 {[%clk 0:03:01]}  a6 {[%clk 0:02:47]} 5. Bd3 {[%clk 0:03:00]}  dxc4 {[%clk 0:02:40]} 6. Bxc4 {[%clk 0:02:59]}  e6 {[%clk 0:02:37]} 7. O-O {[%clk 0:02:56]}  c5 {[%clk 0:02:34]} 8. Nc3 {[%clk 0:02:52]}  b5 {[%clk 0:02:33]} 9. Be2 {[%clk 0:02:51]}  Bb7 {[%clk 0:02:31]} 10. dxc5 {[%clk 0:02:51]}  Qxd1 {[%clk 0:02:28]} 11. Rxd1 {[%clk 0:02:51]}  Bxc5 {[%clk 0:02:29]} 12. Nd2 {[%clk 0:02:50]}  Nbd7 {[%clk 0:02:16]} 13. Nb3 {[%clk 0:02:50]}  Bb6 {[%clk 0:02:12]} 14. a4 {[%clk 0:02:47]}  b4 {[%clk 0:02:10]} 15. a5 {[%clk 0:02:45]}  Ba7 {[%clk 0:02:00]} 16. Na4 {[%clk 0:02:40]}  Bd5 {[%clk 0:01:56]} 17. Nd4 {[%clk 0:02:30]}  O-O {[%clk 0:01:54]} 18. Bd2 {[%clk 0:02:20]}  Rfb8 {[%clk 0:01:45]} 19. Rdc1 {[%clk 0:02:14]}  Ne4 {[%clk 0:01:38]} 20. Be1 {[%clk 0:02:04]}  Nec5 {[%clk 0:01:35]} 21. Nxc5 {[%clk 0:02:03]}  Bxc5 {[%clk 0:01:30]} 22. Bc4 {[%clk 0:01:25]}  Bxd4 {[%clk 0:01:21]} 23. exd4 {[%clk 0:01:21]}  Nf6 {[%clk 0:01:17]} 24. Be2 {[%clk 0:01:15]}  Ne4 {[%clk 0:01:08]} 25. f3 {[%clk 0:01:11]}  Nd6 {[%clk 0:01:07]} 26. Rc5 {[%clk 0:01:09]}  Nf5 {[%clk 0:00:58]} 27. Bf2 {[%clk 0:01:09]}  f6 {[%clk 0:00:56]} 28. Rac1 {[%clk 0:01:07]}  Ne7 {[%clk 0:00:51]} 29. Rc7 {[%clk 0:01:06]}  Rc8 {[%clk 0:00:50]} 30. R1c5 {[%clk 0:00:58]}  Rxc7 {[%clk 0:00:50]} 31. Rxc7 {[%clk 0:00:58]}  Nc6 {[%clk 0:00:50]} 32. h4 {[%clk 0:00:32]}  Nxa5 {[%clk 0:00:47]} 33. g4 {[%clk 0:00:32]}  h6 {[%clk 0:00:40]} 34. g5 {[%clk 0:00:32]}  hxg5 {[%clk 0:00:40]} 35. hxg5 {[%clk 0:00:32]}  fxg5 {[%clk 0:00:40]} 36. Be3 {[%clk 0:00:32]}  Nc6 {[%clk 0:00:40]} 37. Kf2 {[%clk 0:00:31]}  a5 {[%clk 0:00:37]} 38. Bb5 {[%clk 0:00:31]}  Nd8 {[%clk 0:00:27]} 39. Ba4 {[%clk 0:00:30]}  Nf7 {[%clk 0:00:26]} 40. Kg3 {[%clk 0:00:21]}  Rf8 {[%clk 0:00:25]} 41. Bd1 {[%clk 0:00:18]}  a4 {[%clk 0:00:21]} 42. Ra7 {[%clk 0:00:16]}  Nd6 {[%clk 0:00:20]} 43. Rxa4 {[%clk 0:00:13]}  Nc4 {[%clk 0:00:19]} 44. Bc1 {[%clk 0:00:12]}  b3 {[%clk 0:00:19]} 45. Ra7 {[%clk 0:00:11]}  Rf5 {[%clk 0:00:16]} 46. Bxb3 {[%clk 0:00:10]}  Rxf3+ {[%clk 0:00:16]} 47. Kg4 {[%clk 0:00:11]}  Rxb3 {[%clk 0:00:16]} 48. Kxg5 {[%clk 0:00:10]}  Nxb2 {[%clk 0:00:15]} 49. Bf4 {[%clk 0:00:09]}  Nd3 {[%clk 0:00:15]} 50. Kg6 {[%clk 0:00:09]}  Nxf4+ {[%clk 0:00:14]} 0-1


[Site "https://www.chess.com"]

[Event "Titled Tuesday Blitz February 01 A 2022"]
[White "Kobalia, Mikhail"]
[Black "Hakemi, Arman"]
[WhiteFideId "4119150"]
[BlackFideId "22520805"]
[WhiteElo "2667"]
[BlackElo "2208"]
[Result "1-0"]
[Round "11"]
[TimeControl "180+1"]
[Date "2022.02.01"]
[WhiteClock "0:01:57"]
[BlackClock "0:02:06"]

1. e4 {[%clk 0:02:56]}  c5 {[%clk 0:02:31]} 2. Nf3 {[%clk 0:02:56]}  e6 {[%clk 0:02:30]} 3. g3 {[%clk 0:02:55]}  Nc6 {[%clk 0:02:30]} 4. Bg2 {[%clk 0:02:55]}  d5 {[%clk 0:02:31]} 5. exd5 {[%clk 0:02:55]}  exd5 {[%clk 0:02:31]} 6. O-O {[%clk 0:02:55]}  Bg4 {[%clk 0:02:32]} 7. h3 {[%clk 0:02:55]}  Bh5 {[%clk 0:02:31]} 8. d4 {[%clk 0:02:55]}  Nf6 {[%clk 0:02:27]} 9. g4 {[%clk 0:02:47]}  Bg6 {[%clk 0:02:27]} 10. Re1+ {[%clk 0:02:46]}  Be7 {[%clk 0:02:27]} 11. dxc5 {[%clk 0:02:47]}  O-O {[%clk 0:02:27]} 12. Be3 {[%clk 0:02:46]}  Ne4 {[%clk 0:02:27]} 13. Nc3 {[%clk 0:02:36]}  Nxc3 {[%clk 0:02:27]} 14. bxc3 {[%clk 0:02:36]}  Qa5 {[%clk 0:02:28]} 15. Nd4 {[%clk 0:02:25]}  Qxc3 {[%clk 0:02:26]} 16. Nxc6 {[%clk 0:02:15]}  bxc6 {[%clk 0:02:27]} 17. Bd4 {[%clk 0:02:15]}  Qc4 {[%clk 0:02:07]} 18. Rxe7 {[%clk 0:02:13]}  Bxc2 {[%clk 0:02:08]} 19. Qd2 {[%clk 0:02:11]}  Rfe8 {[%clk 0:02:07]} 20. Rxe8+ {[%clk 0:02:00]}  Rxe8 {[%clk 0:02:08]} 21. Rc1 {[%clk 0:02:00]}  Re2 {[%clk 0:02:06]} 22. Qg5 {[%clk 0:01:57]} 1-0


[Site "https://www.chess.com"]

[Event "Titled Tuesday Blitz February 01 A 2022"]
[White "Le, Tuan Minh"]
[Black "Sviridov, Valery"]
[WhiteFideId "12401153"]
[BlackFideId "4120680"]
[WhiteElo "2450"]
[BlackElo "2454"]
[Result "1/2-1/2"]
[Round "11"]
[TimeControl "180+1"]
[Date "2022.02.01"]
[WhiteClock "0:00:00"]
[BlackClock "0:00:13"]

1. d4 {[%clk 0:03:00]}  g6 {[%clk 0:02:58]} 2. e4 {[%clk 0:03:01]}  Bg7 {[%clk 0:02:59]} 3. Nf3 {[%clk 0:03:01]}  d6 {[%clk 0:02:58]} 4. Bd3 {[%clk 0:03:00]}  e6 {[%clk 0:02:56]} 5. O-O {[%clk 0:03:01]}  b6 {[%clk 0:02:57]} 6. Re1 {[%clk 0:03:01]}  Bb7 {[%clk 0:02:57]} 7. a4 {[%clk 0:02:54]}  a6 {[%clk 0:02:55]} 8. Nbd2 {[%clk 0:02:53]}  Ne7 {[%clk 0:02:54]} 9. Nf1 {[%clk 0:02:54]}  O-O {[%clk 0:02:53]} 10. Ng3 {[%clk 0:02:54]}  Nd7 {[%clk 0:02:51]} 11. c3 {[%clk 0:02:53]}  h6 {[%clk 0:02:51]} 12. Bc2 {[%clk 0:02:53]}  c5 {[%clk 0:02:50]} 13. Be3 {[%clk 0:02:52]}  cxd4 {[%clk 0:02:49]} 14. Bxd4 {[%clk 0:02:50]}  e5 {[%clk 0:02:42]} 15. Be3 {[%clk 0:02:49]}  d5 {[%clk 0:02:42]} 16. Qd2 {[%clk 0:02:35]}  Kh7 {[%clk 0:02:42]} 17. Rad1 {[%clk 0:02:34]}  Qc7 {[%clk 0:02:41]} 18. h4 {[%clk 0:02:23]}  Rad8 {[%clk 0:02:39]} 19. h5 {[%clk 0:01:46]}  dxe4 {[%clk 0:02:31]} 20. hxg6+ {[%clk 0:01:42]}  fxg6 {[%clk 0:02:32]} 21. Nh2 {[%clk 0:01:07]}  Nf6 {[%clk 0:02:12]} 22. Qe2 {[%clk 0:01:07]}  Nf5 {[%clk 0:02:11]} 23. Ng4 {[%clk 0:01:02]}  Nxe3 {[%clk 0:02:00]} 24. Nxf6+ {[%clk 0:00:59]}  Bxf6 {[%clk 0:02:01]} 25. Qxe3 {[%clk 0:00:59]}  Bg5 {[%clk 0:02:01]} 26. Qe2 {[%clk 0:00:59]}  e3 {[%clk 0:01:59]} 27. fxe3 {[%clk 0:00:58]}  Kg7 {[%clk 0:01:18]} 28. Ne4 {[%clk 0:00:52]}  Bh4 {[%clk 0:01:17]} 29. Rf1 {[%clk 0:00:50]}  Rxd1 {[%clk 0:01:16]} 30. Qxd1 {[%clk 0:00:48]}  Rxf1+ {[%clk 0:01:05]} 31. Qxf1 {[%clk 0:00:49]}  Bxe4 {[%clk 0:00:59]} 32. Bxe4 {[%clk 0:00:49]}  Bg5 {[%clk 0:00:59]} 33. Qd3 {[%clk 0:00:47]}  Qf7 {[%clk 0:00:53]} 34. Bf3 {[%clk 0:00:36]}  a5 {[%clk 0:00:52]} 35. e4 {[%clk 0:00:34]}  Qe7 {[%clk 0:00:51]} 36. Kf1 {[%clk 0:00:32]}  h5 {[%clk 0:00:51]} 37. Qd5 {[%clk 0:00:31]}  Be3 {[%clk 0:00:46]} 38. Ke2 {[%clk 0:00:31]}  Bc5 {[%clk 0:00:46]} 39. Kd3 {[%clk 0:00:29]}  Kh6 {[%clk 0:00:34]} 40. Kc4 {[%clk 0:00:28]}  Qf6 {[%clk 0:00:29]} 41. b4 {[%clk 0:00:25]}  axb4 {[%clk 0:00:30]} 42. cxb4 {[%clk 0:00:26]}  Bd4 {[%clk 0:00:31]} 43. Kb5 {[%clk 0:00:26]}  g5 {[%clk 0:00:30]} 44. a5 {[%clk 0:00:24]}  bxa5 {[%clk 0:00:30]} 45. bxa5 {[%clk 0:00:25]}  g4 {[%clk 0:00:30]} 46. Be2 {[%clk 0:00:26]}  Kg5 {[%clk 0:00:30]} 47. g3 {[%clk 0:00:24]}  Bf2 {[%clk 0:00:29]} 48. Qd2+ {[%clk 0:00:20]}  Kg6 {[%clk 0:00:27]} 49. Qd7 {[%clk 0:00:11]}  Bxg3 {[%clk 0:00:20]} 50. Bxg4 {[%clk 0:00:10]}  hxg4 {[%clk 0:00:18]} 51. Qxg4+ {[%clk 0:00:10]}  Qg5 {[%clk 0:00:18]} 52. Qe6+ {[%clk 0:00:10]}  Kh5 {[%clk 0:00:18]} 53. Qh3+ {[%clk 0:00:11]}  Qh4 {[%clk 0:00:18]} 54. Qf5+ {[%clk 0:00:11]}  Qg5 {[%clk 0:00:19]} 55. Qh3+ {[%clk 0:00:09]}  Kg6 {[%clk 0:00:20]} 56. Qe6+ {[%clk 0:00:10]}  Kg7 {[%clk 0:00:20]} 57. Qd7+ {[%clk 0:00:10]}  Kf8 {[%clk 0:00:20]} 58. a6 {[%clk 0:00:10]}  Bf2 {[%clk 0:00:18]} 59. Qc8+ {[%clk 0:00:11]}  Kg7 {[%clk 0:00:18]} 60. Qd7+ {[%clk 0:00:11]}  Kg6 {[%clk 0:00:17]} 61. Qe6+ {[%clk 0:00:11]}  Qf6 {[%clk 0:00:18]} 62. Qg4+ {[%clk 0:00:12]}  Kf7 {[%clk 0:00:18]} 63. Qd7+ {[%clk 0:00:13]}  Kf8 {[%clk 0:00:18]} 64. Qc8+ {[%clk 0:00:13]}  Kg7 {[%clk 0:00:18]} 65. Qd7+ {[%clk 0:00:13]}  Kh6 {[%clk 0:00:18]} 66. Qh3+ {[%clk 0:00:14]}  Kg6 {[%clk 0:00:17]} 67. Qg4+ {[%clk 0:00:14]}  Kf7 {[%clk 0:00:17]} 68. Qd7+ {[%clk 0:00:11]}  Kf8 {[%clk 0:00:16]} 69. Qc8+ {[%clk 0:00:09]}  Ke7 {[%clk 0:00:16]} 70. Qc7+ {[%clk 0:00:08]}  Ke8 {[%clk 0:00:16]} 71. Qc8+ {[%clk 0:00:08]}  Qd8 {[%clk 0:00:13]} 72. Qe6+ {[%clk 0:00:09]}  Qe7 {[%clk 0:00:14]} 73. Qc8+ {[%clk 0:00:07]}  Qd8 {[%clk 0:00:13]} 74. Qe6+ {[%clk 0:00:07]}  Qe7 {[%clk 0:00:13]} 75. Qc8+ {[%clk 0:00:02]}  Kf7 {[%clk 0:00:12]} 76. Qf5+ {[%clk 0:00:03]}  Qf6 {[%clk 0:00:13]} 77. Qd7+ {[%clk 0:00:00]} 1/2-1/2


[Site "https://www.chess.com"]

[Event "Titled Tuesday Blitz February 01 A 2022"]
[White "Molina, Roberto Junio Brito"]
[Black "Sadhwani, Raunak"]
[WhiteFideId "2109450"]
[BlackFideId "35093487"]
[WhiteElo "2402"]
[BlackElo "2616"]
[Result "0-1"]
[Round "11"]
[TimeControl "180+1"]
[Date "2022.02.01"]
[WhiteClock "0:00:10"]
[BlackClock "0:00:22"]

1. d4 {[%clk 0:03:00]}  Nf6 {[%clk 0:03:00]} 2. Nf3 {[%clk 0:03:00]}  g6 {[%clk 0:02:59]} 3. e3 {[%clk 0:02:59]}  Bg7 {[%clk 0:02:59]} 4. Be2 {[%clk 0:02:58]}  O-O {[%clk 0:03:00]} 5. O-O {[%clk 0:02:59]}  d6 {[%clk 0:03:00]} 6. c4 {[%clk 0:02:58]}  Nbd7 {[%clk 0:02:59]} 7. Nc3 {[%clk 0:02:58]}  e5 {[%clk 0:02:59]} 8. b4 {[%clk 0:02:57]}  Re8 {[%clk 0:02:57]} 9. Bb2 {[%clk 0:02:56]}  exd4 {[%clk 0:02:56]} 10. Nxd4 {[%clk 0:02:55]}  Ne5 {[%clk 0:02:53]} 11. Nf3 {[%clk 0:02:45]}  c6 {[%clk 0:02:44]} 12. Qd2 {[%clk 0:02:39]}  Bg4 {[%clk 0:02:41]} 13. Nxe5 {[%clk 0:02:33]}  dxe5 {[%clk 0:02:41]} 14. Rfd1 {[%clk 0:02:31]}  Bxe2 {[%clk 0:02:37]} 15. Qxd8 {[%clk 0:02:17]}  Raxd8 {[%clk 0:02:38]} 16. Nxe2 {[%clk 0:02:18]}  e4 {[%clk 0:02:36]} 17. c5 {[%clk 0:02:05]}  Nd5 {[%clk 0:02:30]} 18. Bxg7 {[%clk 0:02:04]}  Kxg7 {[%clk 0:02:31]} 19. a3 {[%clk 0:02:02]}  Nc7 {[%clk 0:02:26]} 20. Nc3 {[%clk 0:02:00]}  f5 {[%clk 0:02:25]} 21. Kf1 {[%clk 0:01:59]}  Ne6 {[%clk 0:02:23]} 22. Ke2 {[%clk 0:01:56]}  Kf6 {[%clk 0:02:23]} 23. Rxd8 {[%clk 0:01:54]}  Rxd8 {[%clk 0:02:24]} 24. Rd1 {[%clk 0:01:52]}  Rxd1 {[%clk 0:02:24]} 25. Kxd1 {[%clk 0:01:51]}  Ke5 {[%clk 0:02:25]} 26. g3 {[%clk 0:01:49]}  g5 {[%clk 0:02:24]} 27. Kc2 {[%clk 0:01:46]}  f4 {[%clk 0:02:19]} 28. g4 {[%clk 0:01:32]}  f3 {[%clk 0:02:15]} 29. h3 {[%clk 0:01:28]}  Ng7 {[%clk 0:02:15]} 30. Na4 {[%clk 0:01:24]}  h5 {[%clk 0:02:14]} 31. gxh5 {[%clk 0:01:19]}  Nxh5 {[%clk 0:02:15]} 32. Kd2 {[%clk 0:01:17]}  Nf6 {[%clk 0:02:14]} 33. Nb2 {[%clk 0:01:14]}  Kd5 {[%clk 0:02:14]} 34. Kc3 {[%clk 0:01:10]}  a5 {[%clk 0:01:56]} 35. Nd1 {[%clk 0:01:03]}  a4 {[%clk 0:01:44]} 36. Kd2 {[%clk 0:01:02]}  Ke5 {[%clk 0:01:34]} 37. Nc3 {[%clk 0:00:59]}  Kf5 {[%clk 0:01:34]} 38. Nxa4 {[%clk 0:00:57]}  Kg6 {[%clk 0:01:35]} 39. Nb6 {[%clk 0:00:55]}  Kh5 {[%clk 0:01:35]} 40. Nc4 {[%clk 0:00:55]}  Kh4 {[%clk 0:01:35]} 41. Nd6 {[%clk 0:00:55]}  Kxh3 {[%clk 0:01:36]} 42. Ke1 {[%clk 0:00:53]}  g4 {[%clk 0:01:21]} 43. Nf5 {[%clk 0:00:52]}  Nd5 {[%clk 0:01:17]} 44. Kf1 {[%clk 0:00:39]}  Nc3 {[%clk 0:00:56]} 45. Ng3 {[%clk 0:00:37]}  Kh4 {[%clk 0:00:54]} 46. Nf5+ {[%clk 0:00:27]}  Kg5 {[%clk 0:00:54]} 47. Nd6 {[%clk 0:00:26]}  g3 {[%clk 0:00:55]} 48. fxg3 {[%clk 0:00:25]}  Kg4 {[%clk 0:00:51]} 49. Nxb7 {[%clk 0:00:18]}  Nd1 {[%clk 0:00:22]} 50. Nd6 {[%clk 0:00:19]}  Nxe3+ {[%clk 0:00:23]} 51. Kf2 {[%clk 0:00:19]}  Nd1+ {[%clk 0:00:23]} 52. Ke1 {[%clk 0:00:20]}  f2+ {[%clk 0:00:22]} 53. Ke2 {[%clk 0:00:20]}  e3 {[%clk 0:00:19]} 54. Ne4 {[%clk 0:00:17]}  Kf5 {[%clk 0:00:17]} 55. Nxf2 {[%clk 0:00:14]}  exf2 {[%clk 0:00:18]} 56. a4 {[%clk 0:00:13]}  Kg4 {[%clk 0:00:18]} 57. b5 {[%clk 0:00:12]}  Kxg3 {[%clk 0:00:18]} 58. bxc6 {[%clk 0:00:12]}  Ne3 {[%clk 0:00:19]} 59. c7 {[%clk 0:00:09]}  f1=Q+ {[%clk 0:00:20]} 60. Kxe3 {[%clk 0:00:09]}  Qa6 {[%clk 0:00:19]} 61. Kd4 {[%clk 0:00:09]}  Qxa4+ {[%clk 0:00:20]} 62. Kd5 {[%clk 0:00:09]}  Qd7+ {[%clk 0:00:21]} 63. Kc4 {[%clk 0:00:09]}  Qxc7 {[%clk 0:00:21]} 64. Kb5 {[%clk 0:00:10]}  Kf4 {[%clk 0:00:22]} 0-1


[Site "https://www.chess.com"]

[Event "Titled Tuesday Blitz February 01 A 2022"]
[White "Ostrovskiy, Andrey"]
[Black "Postny, Evgeny"]
[WhiteFideId "14110326"]
[BlackFideId "2804344"]
[WhiteElo "2469"]
[BlackElo "2483"]
[Result "1/2-1/2"]
[Round "11"]
[TimeControl "180+1"]
[Date "2022.02.01"]
[WhiteClock "0:00:19"]
[BlackClock "0:00:10"]

1. e4 {[%clk 0:02:16]}  c5 {[%clk 0:02:56]} 2. Nf3 {[%clk 0:02:15]}  d6 {[%clk 0:02:56]} 3. d4 {[%clk 0:02:16]}  cxd4 {[%clk 0:02:57]} 4. Nxd4 {[%clk 0:02:16]}  Nf6 {[%clk 0:02:57]} 5. Nc3 {[%clk 0:02:17]}  g6 {[%clk 0:02:58]} 6. Be2 {[%clk 0:02:17]}  Bg7 {[%clk 0:02:58]} 7. O-O {[%clk 0:02:17]}  O-O {[%clk 0:02:59]} 8. Re1 {[%clk 0:02:18]}  Nc6 {[%clk 0:02:59]} 9. Nb3 {[%clk 0:02:18]}  a5 {[%clk 0:02:58]} 10. Bb5 {[%clk 0:02:17]}  Bd7 {[%clk 0:02:57]} 11. Bg5 {[%clk 0:02:16]}  Ne5 {[%clk 0:02:54]} 12. a4 {[%clk 0:02:15]}  Rc8 {[%clk 0:02:52]} 13. Nd5 {[%clk 0:02:00]}  Nxd5 {[%clk 0:02:48]} 14. exd5 {[%clk 0:02:01]}  Bxb5 {[%clk 0:02:27]} 15. axb5 {[%clk 0:02:00]}  Qb6 {[%clk 0:02:28]} 16. Be3 {[%clk 0:01:55]}  Qxb5 {[%clk 0:02:25]} 17. Rxa5 {[%clk 0:01:56]}  Qd7 {[%clk 0:02:24]} 18. Bd4 {[%clk 0:01:48]}  Rfe8 {[%clk 0:02:14]} 19. f4 {[%clk 0:01:37]}  Ng4 {[%clk 0:02:09]} 20. Bxg7 {[%clk 0:01:36]}  Kxg7 {[%clk 0:02:09]} 21. Qd4+ {[%clk 0:01:33]}  Nf6 {[%clk 0:02:08]} 22. c4 {[%clk 0:01:29]}  Qf5 {[%clk 0:01:57]} 23. Rb5 {[%clk 0:01:24]}  Rc7 {[%clk 0:01:37]} 24. Na5 {[%clk 0:01:24]}  Rec8 {[%clk 0:01:18]} 25. h3 {[%clk 0:01:16]}  h5 {[%clk 0:01:16]} 26. Rxb7 {[%clk 0:01:02]}  Rxb7 {[%clk 0:01:14]} 27. Nxb7 {[%clk 0:01:03]}  Qc2 {[%clk 0:01:04]} 28. Na5 {[%clk 0:00:50]}  Ra8 {[%clk 0:00:53]} 29. b4 {[%clk 0:00:49]}  Kf8 {[%clk 0:00:44]} 30. Qe3 {[%clk 0:00:30]}  Re8 {[%clk 0:00:38]} 31. b5 {[%clk 0:00:24]}  Qa2 {[%clk 0:00:31]} 32. Qc3 {[%clk 0:00:20]}  h4 {[%clk 0:00:23]} 33. Nc6 {[%clk 0:00:20]}  Kg7 {[%clk 0:00:19]} 34. b6 {[%clk 0:00:20]}  Qa6 {[%clk 0:00:18]} 35. Rb1 {[%clk 0:00:19]}  Qb7 {[%clk 0:00:18]} 36. Qd4 {[%clk 0:00:19]}  Ra8 {[%clk 0:00:16]} 37. Re1 {[%clk 0:00:17]}  Re8 {[%clk 0:00:14]} 38. Ra1 {[%clk 0:00:18]}  Ra8 {[%clk 0:00:13]} 39. Rxa8 {[%clk 0:00:16]}  Qxa8 {[%clk 0:00:14]} 40. Qb2 {[%clk 0:00:16]}  Qb7 {[%clk 0:00:08]} 41. Na5 {[%clk 0:00:17]}  Qa6 {[%clk 0:00:08]} 42. b7 {[%clk 0:00:17]}  Qxa5 {[%clk 0:00:08]} 43. b8=Q {[%clk 0:00:17]}  Qe1+ {[%clk 0:00:08]} 44. Kh2 {[%clk 0:00:17]}  Qg3+ {[%clk 0:00:09]} 45. Kg1 {[%clk 0:00:18]}  Qe1+ {[%clk 0:00:08]} 46. Kh2 {[%clk 0:00:18]}  Qg3+ {[%clk 0:00:09]} 47. Kg1 {[%clk 0:00:19]}  Qe1+ {[%clk 0:00:10]} 1/2-1/2


[Site "https://www.chess.com"]

[Event "Titled Tuesday Blitz February 01 A 2022"]
[White "Sasikiran, Krishnan"]
[Black "Terry, Renato"]
[WhiteFideId "5004985"]
[BlackFideId "3803457"]
[WhiteElo "2572"]
[BlackElo "2577"]
[Result "1/2-1/2"]
[Round "11"]
[TimeControl "180+1"]
[Date "2022.02.01"]
[WhiteClock "0:00:18"]
[BlackClock "0:00:06"]

1. e4 {[%clk 0:03:00]}  e6 {[%clk 0:03:00]} 2. d4 {[%clk 0:03:00]}  d5 {[%clk 0:03:00]} 3. Nc3 {[%clk 0:03:00]}  Nf6 {[%clk 0:03:00]} 4. e5 {[%clk 0:03:00]}  Nfd7 {[%clk 0:02:57]} 5. f4 {[%clk 0:03:00]}  c5 {[%clk 0:02:57]} 6. Nf3 {[%clk 0:03:00]}  Nc6 {[%clk 0:02:57]} 7. Be3 {[%clk 0:03:00]}  Be7 {[%clk 0:02:57]} 8. Qd2 {[%clk 0:02:56]}  O-O {[%clk 0:02:57]} 9. Bd3 {[%clk 0:02:51]}  f6 {[%clk 0:02:57]} 10. exf6 {[%clk 0:02:48]}  Bxf6 {[%clk 0:02:57]} 11. Bb5 {[%clk 0:02:46]}  cxd4 {[%clk 0:02:50]} 12. Nxd4 {[%clk 0:02:44]}  Bxd4 {[%clk 0:02:49]} 13. Bxd4 {[%clk 0:02:44]}  e5 {[%clk 0:02:47]} 14. Bxe5 {[%clk 0:02:36]}  Ndxe5 {[%clk 0:02:45]} 15. fxe5 {[%clk 0:02:36]}  d4 {[%clk 0:02:36]} 16. Ne2 {[%clk 0:02:26]}  Qd5 {[%clk 0:01:33]} 17. Ba4 {[%clk 0:02:07]}  Qxg2 {[%clk 0:01:25]} 18. O-O-O {[%clk 0:02:06]}  Bg4 {[%clk 0:01:11]} 19. Nxd4 {[%clk 0:01:50]}  Qxd2+ {[%clk 0:01:01]} 20. Rxd2 {[%clk 0:01:50]}  Nxe5 {[%clk 0:01:02]} 21. Re1 {[%clk 0:01:47]}  Nf3 {[%clk 0:00:44]} 22. Nxf3 {[%clk 0:01:46]}  Bxf3 {[%clk 0:00:45]} 23. Re7 {[%clk 0:01:40]}  Rad8 {[%clk 0:00:43]} 24. c4 {[%clk 0:01:17]}  h5 {[%clk 0:00:37]} 25. c5 {[%clk 0:01:14]}  h4 {[%clk 0:00:31]} 26. Bd7 {[%clk 0:01:08]}  Kh7 {[%clk 0:00:26]} 27. b4 {[%clk 0:01:06]}  Kh6 {[%clk 0:00:21]} 28. Rd6+ {[%clk 0:01:01]}  Rf6 {[%clk 0:00:15]} 29. Rxf6+ {[%clk 0:01:00]}  gxf6 {[%clk 0:00:16]} 30. b5 {[%clk 0:01:00]}  Rg8 {[%clk 0:00:16]} 31. c6 {[%clk 0:00:52]}  bxc6 {[%clk 0:00:16]} 32. bxc6 {[%clk 0:00:52]}  Rg5 {[%clk 0:00:15]} 33. Re6 {[%clk 0:00:35]}  Rc5+ {[%clk 0:00:15]} 34. Kd2 {[%clk 0:00:35]}  Kg5 {[%clk 0:00:16]} 35. Ke3 {[%clk 0:00:33]}  Bh1 {[%clk 0:00:12]} 36. Kd4 {[%clk 0:00:31]}  Rc1 {[%clk 0:00:10]} 37. a4 {[%clk 0:00:27]}  a5 {[%clk 0:00:09]} 38. Rd6 {[%clk 0:00:25]}  Kg6 {[%clk 0:00:06]} 39. Be8+ {[%clk 0:00:23]}  Kg5 {[%clk 0:00:06]} 40. Bd7 {[%clk 0:00:20]}  Kg6 {[%clk 0:00:06]} 41. Be8+ {[%clk 0:00:17]}  Kg5 {[%clk 0:00:06]} 42. Bd7 {[%clk 0:00:18]} 1/2-1/2


[Site "https://www.chess.com"]

[Event "Titled Tuesday Blitz February 01 A 2022"]
[White "Starozhilov, Leonid"]
[Black "Kopylov, Alexander A."]
[WhiteFideId "14106752"]
[BlackFideId "4164857"]
[WhiteElo "2414"]
[BlackElo "2436"]
[Result "0-1"]
[Round "11"]
[TimeControl "180+1"]
[Date "2022.02.01"]
[WhiteClock "0:00:01"]
[BlackClock "0:00:17"]

1. e4 {[%clk 0:02:57]}  c6 {[%clk 0:03:00]} 2. g3 {[%clk 0:02:53]}  d5 {[%clk 0:02:59]} 3. exd5 {[%clk 0:02:53]}  cxd5 {[%clk 0:03:00]} 4. d4 {[%clk 0:02:53]}  Nc6 {[%clk 0:03:00]} 5. Bg2 {[%clk 0:02:53]}  h5 {[%clk 0:03:01]} 6. h4 {[%clk 0:02:53]}  Bg4 {[%clk 0:03:00]} 7. Qd3 {[%clk 0:02:52]}  Nf6 {[%clk 0:02:56]} 8. c3 {[%clk 0:02:51]}  e5 {[%clk 0:02:52]} 9. dxe5 {[%clk 0:02:48]}  Nxe5 {[%clk 0:02:53]} 10. Qb5+ {[%clk 0:02:47]}  Bd7 {[%clk 0:02:50]} 11. Qe2 {[%clk 0:02:46]}  Qe7 {[%clk 0:02:49]} 12. Be3 {[%clk 0:02:46]}  Nfg4 {[%clk 0:02:30]} 13. Nf3 {[%clk 0:02:05]}  Nxe3 {[%clk 0:02:29]} 14. fxe3 {[%clk 0:01:53]}  Ng4 {[%clk 0:02:25]} 15. Kd2 {[%clk 0:01:35]}  O-O-O {[%clk 0:02:18]} 16. Na3 {[%clk 0:01:30]}  Rh6 {[%clk 0:02:14]} 17. Nd4 {[%clk 0:01:23]}  Rb6 {[%clk 0:02:12]} 18. Rab1 {[%clk 0:01:20]}  g6 {[%clk 0:02:12]} 19. Bf3 {[%clk 0:01:14]}  Ne5 {[%clk 0:02:12]} 20. Rhe1 {[%clk 0:00:59]}  Qe8 {[%clk 0:02:10]} 21. Bxd5 {[%clk 0:00:51]}  Bg4 {[%clk 0:02:06]} 22. Qg2 {[%clk 0:00:51]}  Qa4 {[%clk 0:01:42]} 23. Nac2 {[%clk 0:00:44]}  Qa6 {[%clk 0:01:32]} 24. Qe4 {[%clk 0:00:21]}  Re8 {[%clk 0:01:15]} 25. Qg2 {[%clk 0:00:11]}  Qd3+ {[%clk 0:01:13]} 26. Kc1 {[%clk 0:00:12]}  Bh6 {[%clk 0:01:09]} 27. Be4 {[%clk 0:00:11]}  Qc4 {[%clk 0:01:07]} 28. Qd2 {[%clk 0:00:09]}  Rd6 {[%clk 0:00:57]} 29. b3 {[%clk 0:00:08]}  Qa6 {[%clk 0:00:56]} 30. Kb2 {[%clk 0:00:07]}  f5 {[%clk 0:00:38]} 31. Nb4 {[%clk 0:00:07]}  Qb6 {[%clk 0:00:34]} 32. Bd3 {[%clk 0:00:08]}  a5 {[%clk 0:00:33]} 33. Nbc2 {[%clk 0:00:08]}  Nf3 {[%clk 0:00:28]} 34. Nxf3 {[%clk 0:00:07]}  Bxf3 {[%clk 0:00:28]} 35. Qf2 {[%clk 0:00:05]}  Rxd3 {[%clk 0:00:26]} 36. Qxf3 {[%clk 0:00:06]}  Bxe3 {[%clk 0:00:21]} 37. Rxe3 {[%clk 0:00:03]}  Rexe3 {[%clk 0:00:21]} 38. Nxe3 {[%clk 0:00:04]}  Qxe3 {[%clk 0:00:21]} 39. Qxe3 {[%clk 0:00:04]}  Rxe3 {[%clk 0:00:22]} 40. Rg1 {[%clk 0:00:04]}  Kc7 {[%clk 0:00:20]} 41. a4 {[%clk 0:00:04]}  Kc6 {[%clk 0:00:20]} 42. Kc2 {[%clk 0:00:04]}  b6 {[%clk 0:00:18]} 43. Kd2 {[%clk 0:00:04]}  Rf3 {[%clk 0:00:18]} 44. Rg2 {[%clk 0:00:04]}  Kd5 {[%clk 0:00:18]} 45. Kc2 {[%clk 0:00:04]}  Ke4 {[%clk 0:00:18]} 46. Re2+ {[%clk 0:00:04]}  Re3 {[%clk 0:00:19]} 47. Rxe3+ {[%clk 0:00:04]}  Kxe3 {[%clk 0:00:19]} 48. b4 {[%clk 0:00:05]}  Kf3 {[%clk 0:00:13]} 49. c4 {[%clk 0:00:04]}  Kxg3 {[%clk 0:00:13]} 50. c5 {[%clk 0:00:04]}  bxc5 {[%clk 0:00:13]} 51. b5 {[%clk 0:00:04]}  f4 {[%clk 0:00:14]} 52. b6 {[%clk 0:00:05]}  f3 {[%clk 0:00:14]} 53. b7 {[%clk 0:00:05]}  f2 {[%clk 0:00:15]} 54. b8=Q+ {[%clk 0:00:06]}  Kg2 {[%clk 0:00:16]} 55. Qb7+ {[%clk 0:00:06]}  Kg1 {[%clk 0:00:16]} 56. Qb1+ {[%clk 0:00:03]}  f1=Q {[%clk 0:00:17]} 57. Qb6 {[%clk 0:00:02]}  Qf2+ {[%clk 0:00:17]} 58. Kd1 {[%clk 0:00:01]}  Qxh4 {[%clk 0:00:17]} 0-1


[Site "https://www.chess.com"]